fUST/lending_fUST_20251210
["ID","MTS","AMOUNT","RATE_DAILY","PERIOD"]
[398107849,1765374843790,215.27,6.523e-05,2]
[398107850,1765374903596,157.17,6.5e-05,2]
[398107852,1765374962962,212.54,6.5e-05,2]
[398107853,1765374963363,212.54,6.5e-05,2]
[398107854,1765375022926,153.61,6.5e-05,2]
[398107855,1765375082243,209.83,6.5e-05,2]
[398107856,1765375083437,209.82,6.523e-05,2]
[398107857,1765375142612,150.86,6.5e-05,2]
[398107858,1765375202457,207.14,6.5e-05,2]
[398107859,1765375202767,207.14,6.5e-05,2]
[398107860,1765375263089,157.88,6.5e-05,2]
[398107861,1765375322844,204.58,6.5e-05,2]
[398107862,1765375324071,204.57,6.523e-05,2]
[398107863,1765375382690,154.3,6.5e-05,2]
[398107864,1765375442726,202.03,6.5e-05,2]
[398107865,1765375444064,202.02,6.523e-05,2]
[398107867,1765375503363,151.37,6.5e-05,2]
[398107872,1765375562839,199.5,6.5e-05,2]
[398107873,1765375563168,199.5,6.5e-05,2]
[398107874,1765375622325,155.94,6.5e-05,2]
[398107875,1765375682475,197.07,6.5e-05,2]
[398107876,1765375683343,197.07,6.5e-05,2]
[398107877,1765375743022,152.74,6.5e-05,2]
[398107878,1765375802499,194.66,6.5e-05,2]
[398107879,1765375803761,194.65,6.523e-05,2]
[398107894,1765375832309,-300.0,0.00012999,2]
[398107895,1765375832320,-700.0,0.00012999,2]
[398107896,1765375832361,-407.03070456,0.00012999,2]
[398107996,1765375838852,-92.96929544,0.00012999,2]
[398107998,1765375838863,-150.0,0.00012999,2]
[398108000,1765375838874,-1000.0,0.00013,2]
[398108002,1765375838884,-207.77536063,0.00013,2]
[398108004,1765375838896,-683.88842277,0.00013,2]
[398108006,1765375838908,-1058.23592004,0.00013,2]
[398108008,1765375838920,-374.98291664,0.00013,2]
[398108011,1765375838936,-1116.33187754,0.00013,2]
[398108012,1765375838946,-300.0,0.00013259,2]
[398108013,1765375838957,-300.0,0.00013259,2]
[398108014,1765375838967,-300.0,0.00013259,2]
[398108015,1765375838977,-300.0,0.00013259,2]
[398108016,1765375838987,-300.0,0.00013259,2]
[398108017,1765375838998,-300.0,0.00013259,2]
[398108018,1765375839008,-300.0,0.00013259,2]
[398108019,1765375839018,-300.0,0.00013259,2]
[398108020,1765375839028,-300.0,0.00013259,2]
[398108021,1765375839039,-300.0,0.00013259,2]
[398108022,1765375839049,-300.0,0.00013259,2]
[398108023,1765375839059,-300.0,0.00013259,2]
[398108024,1765375839070,-300.0,0.00013259,2]
[398108025,1765375839080,-300.0,0.00013259,2]
[398108026,1765375839090,-300.0,0.00013259,2]
[398108027,1765375839100,-600.0,0.00013523,2]
[398108028,1765375839110,-1046.158225,0.00013699,2]
[398108029,1765375839120,-300.0,0.00014256,2]
[398108030,1765375839130,-720.0,0.00014875,2]
[398108031,1765375839141,-342.38623859,0.00014949,7]
[398108032,1765375839151,-500.0,0.00014989,2]
[398108033,1765375839161,-500.0,0.00014989,2]
[398108034,1765375839171,-500.0,0.00014989,2]
[398108035,1765375839180,-500.0,0.00014989,2]
[398108036,1765375839189,-500.0,0.00014989,2]
[398108037,1765375839199,-400.74292435,0.00014989,2]
[398108038,1765375839208,-500.0,0.00014989,2]
[398108039,1765375839218,-500.0,0.00014989,2]
[398108040,1765375839228,-500.0,0.00014989,2]
[398108042,1765375839238,-500.0,0.00014989,2]
[398108044,1765375839248,-378.17025346,0.00014989,2]
[398108046,1765375839257,-55592.68822128,0.0001499,2]
[398108048,1765375839269,-8186.02382301,0.0001499,2]
[398108050,1765375839281,-36221.28795571,0.0001499,2]
[398108052,1765375839291,-1000.0,0.00014995,2]
[398108055,1765375839302,-177.0,0.00014999,2]
[398108057,1765375839312,-758.26105122,0.00015,2]
[398108059,1765375839324,-241.73894878,0.00015,2]
[398108061,1765375839334,-422.66760357,0.0001589,2]
[398108063,1765375839345,-9079.81038059,0.0001589,2]
[398108065,1765375839357,-524.87469203,0.0001589,2]
[398108067,1765375839369,-286.0,0.0001589,2]
[398108070,1765375839381,-541.79725575,0.0001589,2]
[398108072,1765375839393,-4635.81697283,0.0001589,2]
[398108139,1765375840770,-5437.49580794,0.00014895,2]
[398108141,1765375840780,-3749.58409445,0.0001589,2]
[398108147,1765375840824,-635.0,0.0001589,2]
[398108149,1765375840835,-5009.01328906,0.0001589,2]
[398108151,1765375840846,-8552.6403,0.0001589,2]
[398108153,1765375840858,-451.59621594,0.0001589,2]
[398108156,1765375840869,-2217.27230577,0.0001589,2]
[398108158,1765375840881,-511.60544266,0.0001589,2]
[398108519,1765375844470,-378.38774052,0.0001589,2]
[398108521,1765375844482,-464.996769,0.0001589,2]
[398108523,1765375844493,-302.0,0.0001589,2]
[398108526,1765375844505,-1405.60482091,0.0001589,2]
[398108528,1765375844516,-3998.41259666,0.0001589,2]
[398108530,1765375844527,-3097.4470297,0.0001589,2]
[398108532,1765375844543,-760.09503798,0.0001589,2]
[398108741,1765375846591,-845.61652906,0.0001589,2]
[398108743,1765375846602,-465.24704386,0.0001589,2]
[398108744,1765375846615,-371.73847282,0.0001589,2]
[398108745,1765375846629,-19830.4461627,0.0001589,2]
[398108750,1765375863445,156.23,6.5e-05,2]
[398108752,1765375923271,195.35,6.5e-05,2]
[398108753,1765375924408,195.34,6.523e-05,2]
[398108758,1765375983161,153.24,6.5e-05,2]
[398108759,1765376043221,192.97,6.5e-05,2]
[398108760,1765376043262,192.97,6.5e-05,2]
[398108761,1765376103170,150.6,6.5e-05,2]
[398108762,1765376154970,160.0,5.5e-07,2]
[398108763,1765376156086,160.0,5.5e-07,2]
[398108764,1765376157116,160.0,5.5e-07,2]
[398108765,1765376158177,160.0,5.5e-07,2]
[398108766,1765376159208,160.0,5.5e-07,2]
[398108767,1765376160321,160.0,5.5e-07,2]
[398108768,1765376162690,190.62,6.5e-05,2]
[398108769,1765376162971,190.62,6.5e-05,2]
[398108770,1765376223500,153.35,6.5e-05,2]
[398108771,1765376282942,188.34,6.5e-05,2]
[398108772,1765376283285,188.34,6.5e-05,2]
[398108773,1765376342394,150.67,6.5e-05,2]
[398108774,1765376402498,186.08,6.5e-05,2]
[398108775,1765376402906,186.08,6.5e-05,2]
[398108776,1765376462235,152.88,6.5e-05,2]
[398108777,1765376522742,183.89,6.5e-05,2]
[398108778,1765376524022,183.88,6.523e-05,2]
[398108779,1765376583656,150.21,6.5e-05,2]
[398108780,1765376642429,181.71,6.5e-05,2]
[398108781,1765376642851,181.71,6.5e-05,2]
[398108782,1765376702591,152.01,6.5e-05,2]
[398108784,1765376762669,179.6,6.5e-05,2]
[398108785,1765376764900,179.59,6.523e-05,2]
[398108786,1765376822501,153.55,6.5e-05,2]
[398108790,1765376882931,177.54,6.5e-05,2]
[398108791,1765376884359,177.53,6.523e-05,2]
[398108793,1765376942530,150.78,6.5e-05,2]
[398108794,1765377003363,175.49,6.5e-05,2]
[398108795,1765377003462,175.49,6.5e-05,2]
[398108816,1765377032485,-300.0,0.00014989,2]
[398108818,1765377032495,-300.0,0.00014989,2]
[398108820,1765377032505,-1200.0,0.00014989,2]
[398108822,1765377032515,-500.0,0.00014989,2]
[398108824,1765377032525,-595.21,0.00014989,2]
[398108826,1765377032534,-7932.92432625,0.0001499,2]
[398108833,1765377032592,-92067.07567375,0.0001499,2]
[398108835,1765377032601,-756.72573272,0.00015,2]
[398108837,1765377032611,-646.81638057,0.00015087,2]
[398108839,1765377032621,-150.0,0.00015162,2]
[398108841,1765377032630,-500.0,0.00015263,2]
[398108843,1765377032640,-595.21,0.00015263,2]
[398108845,1765377032652,-300.0,0.00015288,2]
[398108847,1765377032661,-300.0,0.00015288,2]
[398108849,1765377032670,-300.0,0.00015288,2]
[398108851,1765377032679,-300.0,0.00015288,2]
[398108853,1765377032688,-300.0,0.00015288,2]
[398108869,1765377032952,-300.0,0.00015288,2]
[398108870,1765377032990,-300.0,0.00015288,2]
[398108871,1765377033002,-300.0,0.00015288,2]
[398108872,1765377033011,-300.0,0.00015288,2]
[398108873,1765377033023,-300.0,0.00015288,2]
[398108874,1765377033036,-300.0,0.00015288,2]
[398108875,1765377033046,-300.0,0.00015288,2]
[398108876,1765377033056,-300.0,0.00015288,2]
[398108877,1765377033068,-300.0,0.00015288,2]
[398108878,1765377033078,-300.0,0.00015288,2]
[398108879,1765377033087,-500.0,0.00015537,2]
[398108880,1765377033097,-595.21,0.00015537,2]
[398108881,1765377033108,-163.77565631,0.0001559,5]
[398108882,1765377033119,-502.17591365,0.0001559,2]
[398108883,1765377033129,-600.0,0.00015593,2]
[398108884,1765377033139,-500.0,0.00015789,2]
[398108885,1765377033151,-6367.36,0.00015789,2]
[398108886,1765377033160,-1924.05,0.00015789,2]
[398108887,1765377033170,-2494.29,0.00015789,2]
[398108888,1765377033179,-1474.99,0.00015789,2]
[398108889,1765377033189,-849.77,0.00015789,2]
[398108890,1765377033199,-1318.78,0.00015789,2]
[398108891,1765377033209,-7690.34,0.00015789,2]
[398108892,1765377033218,-4757.80883193,0.00015789,2]
[398108893,1765377033229,-3487.83,0.00015789,2]
[398108894,1765377033238,-682.83,0.00015789,2]
[398108895,1765377033247,-1836.84,0.00015789,2]
[398108896,1765377033257,-500.0,0.00015789,2]
[398108897,1765377033267,-2233.86,0.00015789,2]
[398108898,1765377033276,-661.43,0.00015789,2]
[398108899,1765377033286,-1316.19,0.00015789,2]
[398108900,1765377033295,-1060.51,0.00015789,2]
[398108901,1765377033304,-2096.89,0.00015789,2]
[398108902,1765377033314,-500.0,0.00015789,2]
[398108903,1765377033323,-500.0,0.00015789,2]
[398108904,1765377033333,-500.0,0.00015789,2]
[398108905,1765377033342,-677.35,0.00015789,2]
[398108906,1765377033352,-1863.32,0.00015789,2]
[398108907,1765377033362,-500.0,0.00015789,2]
[398108908,1765377033371,-500.0,0.00015789,2]
[398108909,1765377033381,-2313.82,0.00015789,2]
[398108910,1765377033390,-500.0,0.00015789,2]
[398108911,1765377033402,-151.0,0.0001579,2]
[398108912,1765377033411,-155632.70881178,0.0001579,2]
[398108931,1765377038643,-500.0,0.00014989,2]
[398108933,1765377038652,-82.63261625,0.00014989,2]
[398108946,1765377038776,-417.36738375,0.00014989,2]
[398108947,1765377038786,-649.2,0.00014989,2]
[398108949,1765377038796,-1072.64,0.00014989,2]
[398108951,1765377038806,-500.0,0.00014989,2]
[398108954,1765377038817,-500.0,0.00014989,2]
[398108956,1765377038827,-500.0,0.00014989,2]
[398108958,1765377038837,-291.56918614,0.00014989,2]
[398108960,1765377038847,-500.0,0.00014989,2]
[398108962,1765377038858,-500.0,0.00014989,2]
[398108964,1765377038869,-500.0,0.00014989,2]
[398108966,1765377038879,-500.0,0.00014989,2]
[398108968,1765377038889,-500.0,0.00014989,2]
[398108970,1765377038899,-500.0,0.00014989,2]
[398108972,1765377038910,-638.61993483,0.00014989,2]
[398108974,1765377038920,-500.0,0.00015263,2]
[398108975,1765377038930,-500.0,0.00015263,2]
[398108977,1765377038940,-649.2,0.00015263,2]
[398108979,1765377038952,-500.0,0.00015263,2]
[398108981,1765377038963,-1072.64,0.00015263,2]
[398108983,1765377038973,-500.0,0.00015537,2]
[398108985,1765377038983,-500.0,0.00015537,2]
[398108987,1765377038994,-649.2,0.00015537,2]
[398108989,1765377039005,-500.0,0.00015537,2]
[398108991,1765377039015,-1072.64,0.00015537,2]
[398108993,1765377039027,-1371.86,0.00015789,2]
[398108995,1765377039040,-1377.25,0.00015789,2]
[398108997,1765377039050,-1107.68,0.00015789,2]
[398108999,1765377039060,-33366.50434187,0.0001579,2]
[398109001,1765377039074,-911.94749805,0.0001579,2]
[398109003,1765377039086,-3375.35056344,0.0001579,2]
[398109153,1765377043777,-500.0,0.00014989,2]
[398109154,1765377043788,-531.21230896,0.00015263,2]
[398109155,1765377043798,-500.0,0.00015263,2]
[398109156,1765377043808,-500.53578618,0.00015537,2]
[398109157,1765377043819,-500.0,0.00015789,2]
[398109159,1765377043828,-874.31683607,0.0001579,2]
[398109161,1765377043841,-2913.47731066,0.0001579,2]
[398109163,1765377043852,-414.45031978,0.0001579,2]
[398109165,1765377043863,-7883.45929748,0.0001579,2]
[398109168,1765377043880,-8126.41739416,0.0001579,2]
[398109172,1765377043914,-4215.00000006,0.0001579,2]
[398109174,1765377043925,-404.63637287,0.0001579,2]
[398109212,1765377046656,-1009.31,0.00014989,2]
[398109213,1765377046667,-4181.55,0.00015789,2]
[398109214,1765377046677,-2066.83,0.00015789,2]
[398109215,1765377046686,-21408.96836033,0.0001579,2]
[398109216,1765377063369,152.05,6.5e-05,2]
[398109217,1765377182664,161.51,6.5e-05,2]
[398109218,1765377184213,161.5,6.523e-05,2]
[398109219,1765377242456,170.12,6.5e-05,2]
[398109220,1765377302888,152.98,6.5e-05,2]
[398109221,1765377362790,169.78,6.5e-05,2]
[398109222,1765377423730,153.41,6.5e-05,2]
[398109223,1765377480834,172.48,6.516e-05,2]
[398109224,1765377482606,169.45,6.5e-05,2]
[398109225,1765377542484,153.82,6.5e-05,2]
[398109226,1765377602950,169.14,6.5e-05,2]
[398109228,1765377662412,150.36,6.5e-05,2]
[398109229,1765377722989,168.76,6.5e-05,2]
[398109230,1765377783217,150.82,6.5e-05,2]
[398109231,1765377842539,168.4,6.5e-05,2]
[398109232,1765377903028,151.26,6.5e-05,2]
[398109233,1765377963004,168.06,6.5e-05,2]
[398109234,1765378024054,151.68,6.5e-05,2]
[398109235,1765378082583,167.73,6.5e-05,2]
[398109236,1765378126355,-200.0,0.00013699,4]
[398109237,1765378126382,-993.850313,0.00013699,2]
[398109238,1765378126405,-1000.0,0.00013699,2]
[398109239,1765378126429,-150.0,0.00013725,2]
[398109240,1765378126454,-180.8953426,0.00013751,2]
[398109241,1765378126475,-200.0322574,0.00013986,2]
[398109242,1765378126503,-620.0,0.00013994,2]
[398109243,1765378126531,-301.1333271,0.00013994,2]
[398109244,1765378126553,-171.21292056,0.00014259,2]
[398109245,1765378126576,-300.08320675,0.00014431,2]
[398109246,1765378126598,-342.95223629,0.00014431,2]
[398109247,1765378126620,-535.32700633,0.00014431,2]
[398109248,1765378126643,-347.34343969,0.00014863,2]
[398109249,1765378126666,-1200.0,0.00014982,2]
[398109250,1765378126688,-300.0,0.00014982,2]
[398109251,1765378126711,-1200.0,0.00014983,2]
[398109252,1765378126734,-718.69,0.00014983,2]
[398109253,1765378126756,-500.17027937,0.00014983,2]
[398109254,1765378126779,-500.0,0.00014983,2]
[398109255,1765378126802,-500.0,0.00014983,2]
[398109256,1765378126826,-500.0,0.00014983,2]
[398109257,1765378126851,-500.0,0.00014983,2]
[398109258,1765378126874,-2390.36,0.00014983,2]
[398109259,1765378126896,-300.0,0.00014984,2]
[398109260,1765378126923,-300.0,0.00014984,2]
[398109261,1765378126945,-300.0,0.00014984,2]
[398109262,1765378126970,-500.0,0.00014984,2]
[398109263,1765378126992,-500.0,0.00014984,2]
[398109264,1765378127015,-500.0,0.00014984,2]
[398109265,1765378127038,-500.82339499,0.00014984,2]
[398109266,1765378127061,-500.0,0.00014984,2]
[398109267,1765378127083,-500.0,0.00014984,2]
[398109268,1765378127106,-1099.29,0.00014984,2]
[398109269,1765378127130,-520.81,0.00014984,2]
[398109270,1765378127152,-500.0,0.00014984,2]
[398109271,1765378127176,-815.11,0.00014984,2]
[398109272,1765378127199,-500.0,0.00014984,2]
[398109273,1765378127221,-500.0,0.00014984,2]
[398109274,1765378127243,-500.0,0.00014984,2]
[398109275,1765378127267,-500.0,0.00014984,2]
[398109276,1765378127288,-580.06,0.00014984,2]
[398109277,1765378127314,-500.0,0.00014984,2]
[398109278,1765378127337,-500.19,0.00014984,2]
[398109279,1765378127361,-500.0,0.00014984,2]
[398109280,1765378127385,-615.65,0.00014984,2]
[398109281,1765378127407,-500.0,0.00014984,2]
[398109282,1765378127430,-500.0,0.00014984,2]
[398109283,1765378127453,-500.0,0.00014984,2]
[398109284,1765378127475,-500.0,0.00014984,2]
[398109285,1765378127496,-1482.18,0.00014984,2]
[398109286,1765378127518,-202.5270327,0.00014984,2]
[398109287,1765378127541,-844.2,0.00014984,2]
[398109288,1765378127971,-996.68,0.00014984,2]
[398109289,1765378127996,-500.0,0.00014984,2]
[398109290,1765378128018,-500.0,0.00014984,2]
[398109291,1765378128040,-500.0,0.00014984,2]
[398109292,1765378128060,-508.66820442,0.00014984,2]
[398109293,1765378128081,-500.0,0.00014984,2]
[398109294,1765378128101,-500.0,0.00014984,2]
[398109295,1765378128122,-500.0,0.00014984,2]
[398109296,1765378128143,-500.0,0.00014984,2]
[398109297,1765378128164,-500.0,0.00014984,2]
[398109298,1765378128185,-500.0,0.00014984,2]
[398109299,1765378128207,-500.0,0.00014984,2]
[398109300,1765378128228,-500.0,0.00014984,2]
[398109301,1765378128250,-500.0,0.00014984,2]
[398109302,1765378128271,-500.0,0.00014984,2]
[398109303,1765378128293,-500.0,0.00014984,2]
[398109304,1765378128314,-500.0,0.00014984,2]
[398109305,1765378128340,-1193.26,0.00014984,2]
[398109306,1765378128364,-500.0,0.00014984,2]
[398109307,1765378128388,-500.0,0.00014984,2]
[398109308,1765378128410,-461.93549139,0.00014984,2]
[398109309,1765378128434,-718.36,0.00014984,2]
[398109310,1765378128458,-500.0,0.00014984,2]
[398109311,1765378128480,-510.21457382,0.00014984,2]
[398109312,1765378128503,-500.0,0.00014984,2]
[398109313,1765378128525,-500.0,0.00014984,2]
[398109314,1765378128546,-500.0,0.00014984,2]
[398109315,1765378128568,-500.0,0.00014984,2]
[398109316,1765378128590,-500.0,0.00014984,2]
[398109317,1765378128613,-500.0,0.00014984,2]
[398109318,1765378128635,-1140.38,0.00014984,2]
[398109319,1765378128657,-500.0,0.00014984,2]
[398109320,1765378128679,-500.0,0.00014984,2]
[398109321,1765378128702,-500.0,0.00014984,2]
[398109322,1765378128726,-500.0,0.00014984,2]
[398109323,1765378128747,-500.0,0.00014984,2]
[398109324,1765378128769,-257.61097359,0.00014984,2]
[398109325,1765378142463,152.08,6.5e-05,2]
[398109326,1765378144210,-500.0,0.00014983,2]
[398109327,1765378144232,-7377.32,0.00014983,2]
[398109328,1765378144254,-242.38902641,0.00014984,2]
[398109329,1765378144275,-500.0,0.00014984,2]
[398109330,1765378144297,-265.14062131,0.00014984,2]
[398109331,1765378144319,-500.0,0.00014984,2]
[398109332,1765378144340,-500.0,0.00014984,2]
[398109333,1765378144362,-500.14534449,0.00014984,2]
[398109334,1765378144387,-500.0,0.00014984,2]
[398109335,1765378144409,-500.0,0.00014984,2]
[398109336,1765378144430,-500.0,0.00014984,2]
[398109337,1765378144453,-500.0,0.00014984,2]
[398109338,1765378144474,-500.0,0.00014984,2]
[398109339,1765378144495,-1539.99,0.00014984,2]
[398109340,1765378144516,-500.0,0.00014984,2]
[398109341,1765378144537,-500.0,0.00014984,2]
[398109342,1765378144559,-500.0,0.00014984,2]
[398109343,1765378144738,-500.0,0.00014984,2]
[398109344,1765378144764,-500.0,0.00014984,2]
[398109345,1765378144787,-500.0,0.00014984,2]
[398109346,1765378144808,-734.39,0.00014984,2]
[398109347,1765378144829,-574.2,0.00014984,2]
[398109348,1765378144850,-500.0,0.00014984,2]
[398109349,1765378144871,-500.0,0.00014984,2]
[398109350,1765378144894,-500.0,0.00014984,2]
[398109351,1765378144914,-500.0,0.00014984,2]
[398109352,1765378144935,-525.94803363,0.00014984,2]
[398109353,1765378144960,-500.0,0.00014984,2]
[398109354,1765378144991,-500.0,0.00014984,2]
[398109355,1765378145016,-500.0,0.00014984,2]
[398109356,1765378145041,-500.0,0.00014984,2]
[398109357,1765378145063,-500.0,0.00014984,2]
[398109358,1765378145085,-500.0,0.00014984,2]
[398109359,1765378145106,-500.0,0.00014984,2]
[398109360,1765378145128,-500.0,0.00014984,2]
[398109361,1765378145149,-500.0,0.00014984,2]
[398109362,1765378145170,-500.0,0.00014984,2]
[398109363,1765378145192,-500.0,0.00014984,2]
[398109364,1765378145215,-500.0,0.00014984,2]
[398109365,1765378145236,-500.0,0.00014984,2]
[398109366,1765378145258,-500.0,0.00014984,2]
[398109367,1765378145280,-500.0,0.00014984,2]
[398109368,1765378145302,-261.90077316,0.00014984,2]
[398109369,1765378145324,-500.0,0.00014984,2]
[398109370,1765378145346,-519.72,0.00014984,2]
[398109371,1765378145370,-500.0,0.00014984,2]
[398109372,1765378145390,-500.0,0.00014984,2]
[398109373,1765378145412,-500.0,0.00014984,2]
[398109374,1765378145433,-1091.17,0.00014984,2]
[398109375,1765378145456,-500.0,0.00014984,2]
[398109376,1765378145478,-500.0,0.00014984,2]
[398109377,1765378145501,-500.0,0.00014984,2]
[398109378,1765378145524,-500.0,0.00014984,2]
[398109379,1765378145547,-500.0,0.00014984,2]
[398109380,1765378145574,-648.2386583,0.00014984,2]
[398109381,1765378145599,-500.0,0.00014984,2]
[398109382,1765378145623,-500.0,0.00014984,2]
[398109383,1765378145645,-395.88858297,0.00014984,2]
[398109384,1765378145668,-316.72874079,0.00014984,2]
[398109385,1765378145690,-500.0,0.00014984,2]
[398109386,1765378145712,-500.0,0.00014984,2]
[398109387,1765378145735,-500.0,0.00014984,2]
[398109388,1765378145755,-500.0,0.00014984,2]
[398109389,1765378145778,-500.0,0.00014984,2]
[398109390,1765378145800,-500.0,0.00014984,2]
[398109391,1765378145822,-500.0,0.00014984,2]
[398109392,1765378145844,-500.0,0.00014984,2]
[398109393,1765378145866,-500.0,0.00014984,2]
[398109394,1765378145889,-500.0,0.00014984,2]
[398109395,1765378145911,-500.0,0.00014984,2]
[398109396,1765378145933,-500.0,0.00014984,2]
[398109397,1765378145956,-500.0,0.00014984,2]
[398109398,1765378145978,-500.0,0.00014984,2]
[398109399,1765378146000,-500.0,0.00014984,2]
[398109400,1765378146024,-500.0,0.00014984,2]
[398109401,1765378146048,-500.0,0.00014984,2]
[398109402,1765378146071,-500.0,0.00014984,2]
[398109403,1765378146095,-500.0,0.00014984,2]
[398109404,1765378146117,-500.0,0.00014984,2]
[398109405,1765378146141,-500.0,0.00014984,2]
[398109406,1765378146163,-500.0,0.00014984,2]
[398109407,1765378146186,-500.0,0.00014984,2]
[398109408,1765378146209,-500.0,0.00014984,2]
[398109409,1765378146232,-500.0,0.00014984,2]
[398109410,1765378146254,-6.83021894,0.00014984,2]
[398109411,1765378202849,167.42,6.5e-05,2]
[398109433,1765378231710,-476.52,0.00014983,2]
[398109435,1765378231721,-507.2010556,0.00014983,2]
[398109437,1765378231732,-1051.3955753,0.00014983,2]
[398109453,1765378231814,-10890.7433691,0.00014983,2]
[398109455,1765378231823,-1157.70578036,0.00014983,2]
[398109460,1765378231834,-1153.34421964,0.00014983,2]
[398109463,1765378231844,-654.38,0.00014983,2]
[398109466,1765378231854,-1413.53,0.00014983,2]
[398109469,1765378231863,-814.37,0.00014983,2]
[398109472,1765378231872,-2473.72,0.00014983,2]
[398109474,1765378231882,-595.47295974,0.00014983,2]
[398109476,1765378231891,-4345.1,0.00014983,2]
[398109478,1765378231900,-3037.18,0.00014983,2]
[398109480,1765378231909,-6069.1,0.00014983,2]
[398109482,1765378231918,-2137.6,0.00014983,2]
[398109484,1765378231927,-1016.32,0.00014983,2]
[398109486,1765378231936,-500.0,0.00014983,2]
[398109488,1765378231947,-1493.64,0.00014983,2]
[398109490,1765378231956,-500.0,0.00014983,2]
[398109492,1765378231965,-1785.68,0.00014983,2]
[398109494,1765378231974,-500.0,0.00014983,2]
[398109496,1765378231983,-633.87,0.00014983,2]
[398109498,1765378231992,-2152.41,0.00014983,2]
[398109500,1765378232002,-1145.39,0.00014983,2]
[398109502,1765378232011,-257.41430453,0.00014983,2]
[398109504,1765378232020,-500.0,0.00014983,2]
[398109506,1765378232029,-294.24873981,0.00014983,2]
[398109508,1765378232039,-500.0,0.00014983,2]
[398109510,1765378232050,-337.75727062,0.00014983,2]
[398109512,1765378232060,-500.0,0.00014983,2]
[398109514,1765378232069,-500.0,0.00014984,2]
[398109516,1765378232078,-500.0,0.00014984,2]
[398109527,1765378232328,-500.0,0.00014984,2]
[398109528,1765378232338,-500.0,0.00014984,2]
[398109529,1765378232349,-500.0,0.00014984,2]
[398109530,1765378232359,-500.0,0.00014984,2]
[398109531,1765378232368,-500.0,0.00014984,2]
[398109532,1765378232377,-500.0,0.00014984,2]
[398109533,1765378232386,-500.0,0.00014984,2]
[398109534,1765378232401,-500.0,0.00014984,2]
[398109535,1765378232410,-500.0,0.00014984,2]
[398109537,1765378232419,-500.0,0.00014984,2]
[398109539,1765378232428,-512.2572631,0.00014984,2]
[398109541,1765378232439,-500.0,0.00014984,2]
[398109542,1765378232449,-500.0,0.00014984,2]
[398109544,1765378232458,-500.0,0.00014984,2]
[398109547,1765378232468,-500.0,0.00014984,2]
[398109549,1765378232478,-500.0,0.00014984,2]
[398109550,1765378232488,-500.0,0.00014984,2]
[398109552,1765378232497,-500.0,0.00014984,2]
[398109554,1765378232506,-500.0,0.00014984,2]
[398109556,1765378232515,-500.0,0.00014984,2]
[398109558,1765378232524,-500.0,0.00014984,2]
[398109560,1765378232534,-500.0,0.00014984,2]
[398109562,1765378232543,-500.0,0.00014984,2]
[398109564,1765378232552,-500.0,0.00014984,2]
[398109566,1765378232562,-500.0,0.00014984,2]
[398109569,1765378232571,-1773.86,0.00014984,2]
[398109571,1765378232580,-500.0,0.00014984,2]
[398109573,1765378232590,-500.0,0.00014984,2]
[398109575,1765378232599,-500.0,0.00014984,2]